fUSD/lending_fUSD_20251215
["ID","MTS","AMOUNT","RATE_DAILY","PERIOD"]
[398512828,1765769442120,-500.0,0.00016428,2]
[398512829,1765769442132,-583.86944773,0.00016428,2]
[398512830,1765769442141,-500.0,0.00016428,2]
[398512831,1765769442150,-500.0,0.00016428,2]
[398512832,1765769442159,-500.0,0.00016428,2]
[398512833,1765769442168,-500.0,0.00016428,2]
[398512834,1765769442177,-500.0,0.00016438,2]
[398512835,1765769442187,-500.0,0.00016438,2]
[398512836,1765769442197,-500.0,0.00016438,2]
[398512837,1765769442206,-500.0,0.00016438,2]
[398512839,1765769442215,-500.0,0.00016438,2]
[398512841,1765769442224,-500.0,0.00016438,2]
[398512843,1765769442233,-500.0,0.00016438,2]
[398512845,1765769442243,-500.0,0.00016438,2]
[398512846,1765769442252,-500.0,0.00016438,2]
[398512848,1765769442261,-500.0,0.00016438,2]
[398512849,1765769442271,-500.0,0.00016438,2]
[398512850,1765769442280,-500.0,0.00016438,2]
[398512851,1765769442289,-500.0,0.00016438,2]
[398512852,1765769442298,-500.0,0.00016438,2]
[398512853,1765769442306,-500.0,0.00016438,2]
[398512855,1765769442315,-500.0,0.00016438,2]
[398512857,1765769442324,-500.0,0.00016438,2]
[398512859,1765769442333,-500.0,0.00016438,2]
[398512861,1765769442342,-500.0,0.00016438,2]
[398512862,1765769442351,-500.0,0.00016438,2]
[398512863,1765769442361,-500.0,0.00016438,2]
[398512865,1765769442370,-500.0,0.00016438,2]
[398512867,1765769442379,-461.70900288,0.00016438,2]
[398512868,1765769442388,-500.0,0.00016438,2]
[398512869,1765769442397,-11447.63,0.00016438,2]
[398512870,1765769442406,-16325.16555809,0.00016449,2]
[398512871,1765769442416,-228.80377519,0.00016469,2]
[398512872,1765769442426,-3474.0,0.00016508,2]
[398512873,1765769442435,-16325.16555809,0.00016513,2]
[398512874,1765769442445,-168.0,0.00016544,2]
[398512875,1765769442454,-150.0,0.00016562,2]
[398512876,1765769442463,-1000.0,0.00016564,2]
[398512877,1765769442472,-912.02197708,0.00016578,2]
[398512878,1765769442811,-781.47808843,0.00016181,2]
[398512879,1765769442828,-549.54937911,0.00016181,2]
[398512880,1765769442837,-239.89452552,0.00016578,2]
[398512881,1765769442848,-4358.37329108,0.00016578,2]
[398512882,1765769442859,-621.329991,0.00016578,2]
[398512883,1765769442871,-7894.39866846,0.00016578,2]
[398512884,1765769442885,-500.0,0.00016578,2]
[398512885,1765769442898,-737.31053188,0.00016578,2]
[398512888,1765769442923,-1061.83657307,0.00016578,2]
[398512890,1765769442933,-653.0,0.00016586,2]
[398512892,1765769442944,-16325.16555809,0.00016642,2]
[398512894,1765769442954,-166.66,0.00016645,2]
[398512896,1765769442963,-150.0,0.00016647,2]
[398512898,1765769442974,-1660.804192,0.0001666,2]
[398512899,1765769442986,-235.7645,0.00016666,2]
[398512900,1765769442998,-281.4445,0.00016666,2]
[398512901,1765769443008,-2064.5842,0.00016676,2]
[398512902,1765769443017,-168.0,0.00016689,2]
[398512903,1765769443026,-168.0,0.000167,2]
[398512904,1765769443035,-12354.82840007,0.00016707,2]
[398512906,1765769445540,-500.0,0.00016438,2]
[398512907,1765769445549,-500.0,0.00016438,2]
[398512908,1765769445558,-500.0,0.00016438,2]
[398512909,1765769445567,-500.0,0.00016438,2]
[398512910,1765769445577,-500.0,0.00016438,2]
[398512911,1765769445586,-3970.33715802,0.00016707,2]
[398512912,1765769445594,-150.0,0.00016726,2]
[398512913,1765769445604,-421.0,0.00016726,2]
[398512914,1765769445613,-150.0,0.00016726,2]
[398512915,1765769445622,-500.0,0.00016726,2]
[398512916,1765769445631,-500.0,0.00016726,2]
[398512919,1765769446016,-1526.0,0.00016726,2]
[398512920,1765769446052,-500.0,0.00016726,2]
[398512921,1765769446064,-150.0,0.00016726,2]
[398512922,1765769446073,-500.0,0.00016726,2]
[398512923,1765769446083,-150.0,0.00016726,2]
[398512924,1765769446092,-461.0,0.0001674,2]
[398512925,1765769446101,-648.78574138,0.00016767,2]
[398512926,1765769446114,-351.21425862,0.00016767,2]
[398512927,1765769446123,-306.29619008,0.00016771,2]
[398512928,1765769446134,-16018.86936801,0.00016771,2]
[398512929,1765769446143,-500.0,0.00016776,2]
[398512930,1765769446153,-500.0,0.00016776,2]
[398512931,1765769446163,-533.98599948,0.0001681,2]
[398512932,1765769446174,-1000.0,0.00016831,2]
[398512933,1765769446185,-16325.16555809,0.00016836,2]
[398512934,1765769446194,-1700.803,0.00016836,2]
[398512935,1765769446204,-158.21277975,0.00016848,2]
[398512936,1765769446213,-421.0,0.00016863,2]
[398512937,1765769446222,-180.63988118,0.00016863,2]
[398512938,1765769446232,-500.0,0.00016863,2]
[398512939,1765769446241,-500.0,0.00016863,2]
[398512940,1765769446250,-1526.0,0.00016863,2]
[398512941,1765769446259,-504.66426107,0.00016863,2]
[398512942,1765769446268,-500.0,0.00016863,2]
[398512943,1765769446277,-2426.0,0.00016872,2]
[398512945,1765769446287,-1330.655,0.00016872,2]
[398512946,1765769446295,-500.0,0.00016873,2]
[398512947,1765769446305,-150.9361352,0.00016898,2]
[398512948,1765769446315,-10000.0,0.000169,2]
[398512949,1765769446325,-185.16879351,0.000169,2]
[398512950,1765769446336,-16325.16555809,0.000169,2]
[398512951,1765769446345,-481.25235646,0.00016915,2]
[398512952,1765769446356,-1502.0,0.00016919,2]
[398512953,1765769446366,-3448.6317359,0.00016945,2]
[398512954,1765769446377,-27885.95337661,0.00016955,2]
[398512955,1765769446386,-500.0,0.00016973,2]
[398512956,1765769446398,-500.7810211,0.00016973,2]
[398512957,1765769446407,-500.0,0.00016973,2]
[398512958,1765769446416,-500.0,0.00016973,2]
[398512959,1765769446426,-500.0,0.00016973,2]
[398512960,1765769446435,-500.0,0.00016973,2]
[398512961,1765769446445,-212.80605568,0.00016973,2]
[398512962,1765769446454,-401.51810445,0.00016973,2]
[398512963,1765769446462,-500.0,0.00016973,2]
[398512964,1765769446471,-500.0,0.00016973,2]
[398512965,1765769446480,-500.0,0.00016973,2]
[398512966,1765769446489,-500.0,0.00016973,2]
[398512967,1765769446498,-500.0,0.00016973,2]
[398512968,1765769446507,-500.0,0.00016973,2]
[398512969,1765769446516,-500.0,0.00016973,2]
[398512970,1765769446526,-500.0,0.00016973,2]
[398512971,1765769446536,-500.0,0.00016973,2]
[398512972,1765769446546,-500.0,0.00016973,2]
[398512973,1765769446555,-500.0,0.00016973,2]
[398512974,1765769446564,-501.52504699,0.00016973,2]
[398512975,1765769446573,-595.37131296,0.00016976,2]
[398512976,1765769446582,-200.0,0.00016976,2]
[398512977,1765769446591,-200.0,0.00016976,2]
[398512978,1765769446601,-500.0,0.00016976,2]
[398512979,1765769446610,-467.3668056,0.00016976,2]
[398512980,1765769446620,-150.0,0.00016986,2]
[398512981,1765769446629,-150.0,0.00016986,2]
[398512982,1765769446640,-150.0,0.00016986,2]
[398512983,1765769446650,-150.0,0.00016986,2]
[398512984,1765769446660,-150.0,0.00016986,2]
[398512985,1765769446669,-150.0,0.00016986,2]
[398512986,1765769446679,-150.0,0.00016986,2]
[398512987,1765769446692,-862.9,0.0001699,2]
[398512988,1765769446702,-151.0,0.00016997,2]
[398512989,1765769446711,-1002.3708,0.00016999,2]
[398512990,1765769446724,-189.5287261,0.00016999,2]
[398512991,1765769446733,-300.0,0.00016999,2]
[398512992,1765769446743,-2500.0,0.00016999,2]
[398512993,1765769446753,-500.0,0.00016999,2]
[398512994,1765769446762,-500.0,0.00016999,2]
[398512995,1765769446773,-500.0,0.00016999,2]
[398512996,1765769446783,-500.0,0.00016999,2]
[398512997,1765769446792,-500.0,0.00016999,2]
[398512998,1765769446801,-500.0,0.00016999,2]
[398512999,1765769446810,-500.0,0.00016999,2]
[398513000,1765769446820,-500.0,0.00016999,2]
[398513001,1765769446831,-500.0,0.00016999,2]
[398513002,1765769446840,-500.0,0.00016999,2]
[398513003,1765769446850,-500.0,0.00016999,2]
[398513004,1765769446861,-500.0,0.00016999,2]
[398513005,1765769446870,-500.0,0.00016999,2]
[398513006,1765769446882,-500.0,0.00016999,2]
[398513007,1765769446892,-550.08471982,0.00016999,2]
[398513008,1765769446902,-6447.6666336,0.00016999,2]
[398513009,1765769446911,-421.0,0.00017,2]
[398513010,1765769446921,-500.0,0.00017,2]
[398513011,1765769446931,-500.0,0.00017,2]
[398513012,1765769446940,-1526.0,0.00017,2]
[398513013,1765769446949,-500.0,0.00017,2]
[398513014,1765769446958,-152.52,0.00017,2]
[398513015,1765769446967,-389231.4492564,0.00017,2]
[398513016,1765769446986,-295.48710831,0.00017,2]
[398513017,1765769446997,-1273.35928114,0.00017,2]
[398513018,1765769447016,-2700.0,0.00017,2]
[398513216,1765769894735,1000.0,0.00013699,2]
[398513290,1765769970102,201.0,0.000225,120]
[398513455,1765770278648,-317.11245723,0.00015735,2]
[398513473,1765770282153,-250.0,0.00015735,2]
[398513474,1765770283670,-370.48722945,0.00015735,2]
[398513499,1765770324337,150.0,0.00015288,2]
[398513500,1765770328033,150.0,0.00015288,2]
[398513503,1765770332413,150.0,0.00015288,2]
[398513504,1765770332459,150.0,0.00015288,2]
[398513508,1765770338711,576.78,0.00015698,2]
[398513513,1765770345703,150.0,0.00015288,2]
[398513566,1765770453698,196.61,0.00015629,2]
[398513594,1765770591364,1100.0,0.00022,30]
[398513608,1765770631555,-62.40031332,0.00015735,2]
[398513609,1765770631564,-198.59968654,0.00015764,2]
[398513610,1765770631611,-51.40031346,0.00015764,2]
[398513611,1765770631621,-150.0,0.00015793,2]
[398513612,1765770631631,-200.0,0.00015794,2]
[398513613,1765770631641,-248.35517042,0.00015833,2]
[398513614,1765770631653,-544.02,0.00015833,2]
[398513615,1765770636125,-559.2491887,0.00015778,2]
[398513616,1765770636135,-944.1343704,0.00015778,2]
[398513617,1765770636146,-731.71018286,0.00015778,2]
[398513618,1765770636157,-1171.15387376,0.00015778,2]
[398513619,1765770636168,-698.89589099,0.00015778,2]
[398513620,1765770636186,-477.85649329,0.00015778,2]
[398513621,1765770636195,-407.62482958,0.00015833,2]
[398513622,1765770636204,-1200.0,0.00015833,2]
[398513623,1765770636214,-300.0,0.00015833,2]
[398513624,1765770636223,-200.0,0.00015834,2]
[398513625,1765770636232,-151.0,0.00015834,2]
[398513626,1765770636241,-151.0,0.00015834,2]
[398513627,1765770636251,-151.0,0.00015834,2]
[398513628,1765770636260,-151.0,0.00015834,2]
[398513629,1765770636269,-151.0,0.00015834,2]
[398513630,1765770636278,-151.0,0.00015834,2]
[398513631,1765770636288,-200.0,0.00015834,2]
[398513632,1765770636297,-151.0,0.00015834,2]
[398513633,1765770636306,-203.54831557,0.00015834,2]
[398513634,1765770636315,-151.0,0.00015834,2]
[398513635,1765770636325,-151.0,0.00015834,2]
[398513636,1765770636334,-151.0,0.00015834,2]
[398513637,1765770636343,-151.0,0.00015834,2]
[398513638,1765770636352,-183.31426236,0.00015834,2]
[398513639,1765770636363,-316.68573764,0.00015834,2]
[398513640,1765770636372,-120.75102736,0.00015843,2]
[398513642,1765770637969,-179.24897264,0.00015843,2]
[398513643,1765770637978,-10764.29735127,0.00015844,2]
[398513644,1765770638128,-992.08264873,0.00015844,2]
[398513645,1765770638138,-245.91,0.00015856,2]
[398513646,1765770638147,-4554.81,0.00015894,2]
[398513647,1765770638156,-310.02461676,0.000159,2]
[398513648,1765770638167,-84.94740109,0.00015956,2]
[398513649,1765770638192,-5803.05259891,0.00015956,2]
[398513650,1765770638201,-642.0,0.00016145,2]
[398513651,1765770638210,-3184.69,0.00016145,2]
[398513652,1765770638220,-150.99,0.00016145,2]
[398513653,1765770638229,-926.51,0.00016149,2]
[398513655,1765770638245,-151.0,0.00016149,2]
[398513657,1765770638259,-606.98391087,0.00016149,2]
[398513658,1765770638268,-250.0,0.00016149,2]
[398513659,1765770638278,-250.0,0.00016149,2]
[398513660,1765770638287,-250.0,0.00016149,2]
[398513662,1765770638296,-250.0,0.00016149,2]
[398513664,1765770638306,-250.0,0.00016149,2]
[398513666,1765770638315,-250.0,0.00016149,2]
[398513668,1765770638324,-250.0,0.00016149,2]
[398513670,1765770638334,-250.0,0.00016149,2]
[398513672,1765770638343,-250.0,0.00016149,2]
[398513674,1765770638352,-250.0,0.00016149,2]
[398513676,1765770638361,-250.0,0.00016149,2]
[398513678,1765770638370,-1000.0,0.00016149,2]
[398513680,1765770638379,-246.22477449,0.00016149,2]
[398513803,1765770639699,-753.77522551,0.00016149,2]
[398513805,1765770639708,-1000.0,0.00016149,2]
[398513806,1765770639722,-356.31042007,0.00016149,2]
[398513807,1765770639804,-612.4781407,0.00016149,2]
[398513808,1765770639815,-31.21143923,0.00016149,2]
[398513809,1765770639824,-250.0,0.00016149,2]
[398513810,1765770639833,-1000.0,0.00016149,2]
[398513811,1765770639842,-250.0,0.00016149,2]
[398513812,1765770639852,-508.61615284,0.00016149,2]
[398513813,1765770639967,-491.38384716,0.00016149,2]
[398513814,1765770639976,-68.41767254,0.00016149,2]
[398513815,1765770639992,-431.58232746,0.00016149,2]
[398513816,1765770640001,-1000.0,0.00016149,2]
[398513817,1765770640011,-294.42487563,0.00016149,2]
[398513818,1765770640022,-705.57512437,0.00016149,2]
[398513819,1765770640033,-1000.0,0.00016149,2]
[398513820,1765770640042,-1000.0,0.00016149,2]
[398513821,1765770640052,-1000.0,0.00016149,2]
[398513822,1765770640064,-413.87767664,0.00016149,2]
[398513825,1765770642674,-773.17359864,0.00016149,2]
[398513826,1765770642781,-305.43973936,0.00016149,2]
[398513827,1765770642885,-9.50898536,0.00016149,2]
[398513828,1765770642895,-310.49101464,0.00016149,2]
[398513831,1765770645701,-263.63754173,0.00016149,2]
[398513832,1765770645711,-620.0,0.00016149,2]
[398513833,1765770645720,-151.0,0.00016149,2]
[398513834,1765770645729,-500.0,0.00016149,2]
[398513835,1765770645739,-500.0,0.00016149,2]
[398513836,1765770645748,-500.0,0.00016149,2]
[398513837,1765770645758,-500.0,0.00016149,2]
[398513838,1765770645768,-500.0,0.00016149,2]
[398513839,1765770645780,-151.0,0.00016149,2]
[398513840,1765770645791,-500.0,0.00016149,2]
[398513841,1765770645802,-500.0,0.00016149,2]
[398513842,1765770645814,-500.0,0.00016149,2]
[398513843,1765770645823,-500.0,0.00016149,2]
[398513844,1765770645833,-693.3919763,0.00016149,2]
[398513845,1765770645842,-300.0,0.00016149,2]
[398513846,1765770645852,-166.66,0.00016161,2]
[398513847,1765770645863,-500.0,0.00016161,2]
[398513849,1765770645872,-1741.93120411,0.00016189,2]
[398513851,1765770645881,-629.0,0.00016269,2]
[398513853,1765770645890,-743.0,0.00016295,2]
[398513855,1765770645900,-1002.26552376,0.00016337,2]
[398513857,1765770645910,-3779.04767454,0.00016338,2]
[398513859,1765770645959,-1181.39263457,0.00016338,2]
[398513860,1765770645971,-3263.59969089,0.00016338,2]
[398513861,1765770645980,-1000.0,0.00016338,2]
[398513862,1765770645992,-168.0,0.0001635,2]
[398513863,1765770646003,-200.0,0.00016382,2]
[398513864,1765770646013,-44.64564699,0.00016408,2]
[398513923,1765771322930,166.66,0.00014983,2]
[398513924,1765771323134,166.66,0.00015298,2]
[398513925,1765771323332,166.66,0.00015614,2]
[398513926,1765771352378,792.20900834,0.00015718,2]
[398513955,1765771521549,150.0,0.00015288,2]
[398513956,1765771521581,150.0,0.00015288,2]
[398513957,1765771521683,150.0,0.00015288,2]
[398513958,1765771521778,-153.34794058,0.00015758,2]
[398513959,1765771523727,-300.0,0.00015758,2]
[398513962,1765771526235,-300.0,0.00015758,2]
[398513963,1765771527644,-174.66898404,0.00015758,2]
[398513964,1765771528418,150.0,0.00015288,2]
[398513965,1765771528528,150.0,0.00015288,2]
[398513966,1765771528644,150.00000001,0.00015288,2]
[398513967,1765771529799,-166.66000017,0.00015758,2]
[398513969,1765771534032,-242.7134186,0.00015758,2]
[398513970,1765771537756,-206.2584032,0.00015758,2]
[398513973,1765771541221,1000.13470234,0.00012,2]
[398513974,1765771541760,-279.0,0.00015758,2]
[398513975,1765771546396,-249.34431884,0.00015758,2]
[398513976,1765771548474,-221.0,0.00015758,2]
[398513978,1765771552116,-511.49152709,0.00015758,2]
[398514013,1765771672406,400.0,0.00022,30]
[398514035,1765771752983,250.0,0.00015298,2]
[398514047,1765771823580,168.0,0.00015681,2]
[398514048,1765771831753,-168.0,0.00015756,2]
[398514049,1765771831763,-213.85540748,0.00015758,2]
[398514050,1765771831772,-250.0,0.00015773,2]
[398514051,1765771831781,-202.93059252,0.00015789,3]
[398514052,1765771831792,-462.11065713,0.00015789,3]
[398514053,1765771831807,-333.95875035,0.00015789,3]
[398514054,1765771831816,-130.48807295,0.00015794,2]
[398514055,1765771831914,-119.51192705,0.00015794,2]
[398514056,1765771831924,-300.0,0.0001581,2]
[398514058,1765771831934,-579.48807295,0.0001581,2]
[398514060,1765771831968,-620.51192705,0.0001581,2]
[398514061,1765771831977,-1165.10770116,0.00015811,2]
[398514062,1765771832022,-34.89229884,0.00015811,2]
[398514063,1765771832031,-1852.42,0.00015812,2]
[398514064,1765771832040,-500.0,0.00015812,2]
[398514065,1765771832049,-500.0,0.00015812,2]
[398514066,1765771832058,-500.0,0.00015812,2]
[398514067,1765771832067,-332.72965014,0.00015812,2]
[398514068,1765771832077,-500.0,0.00015847,2]
[398514069,1765771832086,-150.0,0.00015854,2]
[398514070,1765771832095,-166.66,0.00015929,2]
[398514071,1765771832104,-168.0,0.00016061,2]
[398514072,1765771832113,-1703.55778538,0.00016133,2]
[398514073,1765771832122,-3731.1387425,0.00016133,2]
[398514075,1765771832131,-528.92490814,0.00016133,2]
[398514077,1765771832141,-311.1,0.00016149,2]
[398514078,1765771832150,-389.0,0.0001619,2]
[398514080,1765771832159,-550.0,0.00016207,2]
[398514082,1765771832169,-300.0,0.00016208,2]
[398514084,1765771832178,-200.0,0.00016208,2]
[398514087,1765771832188,-574.12855637,0.00016208,2]
[398514088,1765771832198,-152.60863937,0.00016208,2]
[398514090,1765771832207,-1000.0,0.00016208,2]
[398514092,1765771832217,-1000.0,0.00016208,2]
[398514094,1765771832226,-1000.0,0.00016208,2]
[398514096,1765771832235,-500.0,0.00016208,2]
[398514098,1765771832244,-620.0,0.00016208,2]
[398514099,1765771832253,-151.0,0.00016208,2]
[398514100,1765771832263,-151.0,0.00016208,2]
[398514101,1765771832274,-151.0,0.00016208,2]
[398514102,1765771832283,-151.0,0.00016208,2]
[398514103,1765771832292,-151.0,0.00016208,2]
[398514104,1765771832301,-151.0,0.00016208,2]
[398514105,1765771832310,-151.0,0.00016208,2]
[398514106,1765771832319,-151.0,0.00016208,2]
[398514107,1765771832328,-162.38933071,0.00016208,2]
[398514108,1765771832337,-156.64173634,0.00016208,2]
[398514109,1765771832346,-1502.0,0.00016208,2]
[398514110,1765771832355,-404.45957377,0.00016217,2]
[398514111,1765771832374,-95.54042623,0.00016217,2]
[398514112,1765771832384,-264.1886854,0.00016217,2]
[398514113,1765771832393,-158.3174404,0.00016217,2]
[398514115,1765771837836,-341.6825596,0.00016217,2]
[398514116,1765771837847,-500.0,0.00016217,2]
[398514117,1765771837857,-500.0,0.00016217,2]
[398514118,1765771837867,-500.0,0.00016217,2]
[398514119,1765771837876,-500.0,0.00016217,2]
[398514120,1765771837886,-500.0,0.00016217,2]
[398514121,1765771837896,-500.0,0.00016217,2]
[398514122,1765771837905,-500.0,0.00016217,2]
[398514123,1765771837914,-500.0,0.00016217,2]
[398514124,1765771837924,-500.0,0.00016217,2]
[398514125,1765771837934,-500.0,0.00016217,2]
[398514126,1765771837944,-500.0,0.00016217,2]
[398514127,1765771837954,-500.0,0.00016217,2]
[398514128,1765771837963,-261.33165092,0.00016217,2]
[398514129,1765771837973,-500.0,0.00016217,2]
[398514130,1765771837981,-500.0,0.00016217,2]
[398514131,1765771837991,-500.0,0.00016217,2]
[398514132,1765771838000,-500.0,0.00016217,2]
[398514133,1765771838009,-500.0,0.00016217,2]
[398514134,1765771838017,-500.0,0.00016217,2]
[398514135,1765771838027,-500.0,0.00016217,2]
[398514136,1765771838036,-500.0,0.00016217,2]
[398514137,1765771838044,-500.0,0.00016217,2]
[398514138,1765771838053,-500.0,0.00016217,2]
[398514140,1765771838062,-500.0,0.00016217,2]
[398514142,1765771838071,-500.0,0.00016217,2]
[398514144,1765771838080,-353.74090499,0.00016217,2]
[398514146,1765771838090,-500.0,0.00016217,2]
[398514148,1765771838098,-127.87597443,0.00016218,2]
[398514150,1765771838110,-4707.87400077,0.00016218,2]
[398514152,1765771838119,-1297.45720114,0.00016218,2]
[398514155,1765771838137,-3025.74274866,0.00016218,2]
[398514157,1765771838146,-2899.097221,0.00016218,2]
[398514159,1765771838155,-10477.16643168,0.00016218,2]
[398514162,1765771838166,-267899.27666377,0.00016218,2]
[398514164,1765771838177,-1341.69773257,0.00016218,2]
[398514166,1765771838188,-1260.0,0.00016218,2]
[398514168,1765771838199,-1118.10003,0.00016218,2]
[398514195,1765771839834,-1136.49220555,0.00016208,2]
[398514196,1765771839890,-1483.71779445,0.00016208,2]
[398514197,1765771839899,-151.0,0.00016215,2]
[398514198,1765771839908,-7334.24220555,0.00016218,2]
[398514199,1765771839997,-424.61229598,0.00016218,2]
[398514200,1765771840009,-6057.14710165,0.00016218,2]
[398514201,1765771840020,-2175.02066338,0.00016218,2]
[398514202,1765771840031,-1109.86639144,0.00016218,2]
[398514203,1765771840042,-999.99995,0.00016218,2]
[398514244,1765771842769,-1332.06751711,0.00016218,2]
[398514245,1765771842877,-6697.50952846,0.00016218,2]
[398514246,1765771842888,-56188.78836424,0.00016218,2]
[398514248,1765771843036,-733.76279026,0.00016218,2]
[398514256,1765771848440,-3838.64415084,0.00016218,2]
[398514257,1765771848451,-1172.05199095,0.00016218,2]
[398514258,1765771848462,-1203.37088605,0.00016218,2]
[398514259,1765771848480,-611.68963455,0.00016218,2]
[398514260,1765771848500,-433.02848958,0.00016218,2]
[398514261,1765771848511,-274.18,0.00016218,2]
[398514262,1765771848522,-1292.61464,0.00016218,2]
[398514263,1765771848534,-2245.3092668,0.00016218,2]
[398514264,1765771848545,-404.72580003,0.00016218,2]
[398514265,1765771848556,-336.6675,0.00016218,2]
[398514266,1765771848567,-13054.6975725,0.00016218,2]
[398514267,1765771848587,-2183.75458493,0.00016218,2]
[398514268,1765771848599,-423.74647872,0.00016218,2]
[398514269,1765771848609,-11265.41157116,0.00016218,2]
[398514270,1765771848619,-3731.1387425,0.00016218,2]
[398514271,1765771848627,-528.92490808,0.00016218,2]
[398514272,1765771848637,-305.35435318,0.00016233,2]
[398514273,1765771848646,-1703.55778534,0.00016243,2]
[398514274,1765771848655,-166.66,0.00016244,2]
[398514275,1765771848665,-3731.1387425,0.00016303,2]
[398514276,1765771848674,-528.92490808,0.00016303,2]
[398514277,1765771848684,-1703.55778534,0.00016352,2]
[398514278,1765771848693,-5673.0,0.00016363,2]
[398514279,1765771848703,-3731.1387425,0.00016389,2]
[398514280,1765771848713,-528.92490808,0.00016389,2]
[398514281,1765771848722,-505.39169569,0.00016392,2]
[398514282,1765771848732,-373.24210526,0.00016408,2]
[398514283,1765771848741,-968.14263279,0.00016408,2]
[398514284,1765771848751,-248.82807017,0.00016408,2]
[398514285,1765771848760,-645.42842186,0.00016408,2]
[398514286,1765771848769,-360.72982092,0.00016408,2]
[398514287,1765771848780,-150.0,0.0001642,2]
[398514288,1765771848789,-2620.21,0.00016428,2]
[398514289,1765771848799,-500.0,0.00016438,2]
[398514290,1765771848808,-500.0,0.00016438,2]
[398514291,1765771848817,-500.0,0.00016438,2]
[398514292,1765771848826,-500.0,0.00016438,2]
[398514293,1765771848836,-500.0,0.00016438,2]
[398514294,1765771848845,-500.0,0.00016438,2]
[398514295,1765771848856,-500.0,0.00016438,2]
[398514296,1765771848866,-500.0,0.00016438,2]
[398514297,1765771848876,-500.0,0.00016438,2]
[398514298,1765771848885,-500.0,0.00016438,2]
[398514299,1765771848894,-500.0,0.00016438,2]
[398514300,1765771848903,-500.0,0.00016438,2]
[398514301,1765771848912,-500.0,0.00016438,2]
[398514302,1765771848921,-500.0,0.00016438,2]
[398514303,1765771848930,-500.0,0.00016438,2]
[398514304,1765771848939,-500.0,0.00016438,2]
[398514305,1765771848949,-500.0,0.00016438,2]
[398514306,1765771848958,-500.0,0.00016438,2]
[398514307,1765771848967,-500.0,0.00016438,2]
[398514308,1765771848976,-500.0,0.00016438,2]
[398514309,1765771848984,-500.0,0.00016438,2]
[398514310,1765771848993,-500.0,0.00016438,2]
[398514311,1765771849002,-500.0,0.00016438,2]
[398514312,1765771849011,-255.38714834,0.00016438,2]
[398514313,1765771849020,-500.0,0.00016438,2]
[398514314,1765771849029,-500.0,0.00016438,2]
[398514315,1765771849039,-500.0,0.00016438,2]
[398514316,1765771849048,-500.0,0.00016438,2]
[398514317,1765771849058,-500.0,0.00016438,2]
[398514318,1765771849067,-577.20761089,0.00016438,2]
[398514319,1765771849076,-577.20761089,0.00016438,2]
[398514320,1765771849085,-577.20761089,0.00016438,2]
[398514321,1765771849094,-577.20761089,0.00016438,2]
[398514322,1765771849103,-577.20761089,0.00016438,2]
[398514323,1765771849112,-577.20761089,0.00016438,2]
[398514324,1765771849121,-605.01,0.00016438,2]
[398514325,1765771849130,-800.55519591,0.00016438,2]
[398514326,1765771849140,-9539.69,0.00016438,2]
[398514327,1765771849149,-180.02,0.00016438,2]
[398514328,1765771849160,-150.0,0.00016438,2]
[398514329,1765771849170,-371.14,0.00016442,2]
[398514330,1765771849179,-642.0,0.00016447,2]
[398514331,1765771849188,-1703.55778534,0.00016462,2]
[398514332,1765771849197,-3731.1387425,0.00016474,2]
[398514333,1765771849207,-528.92490808,0.00016474,2]
[398514334,1765771849218,-168.0,0.00016478,2]